Cogmind - Beta 10.2 @@@ ROGUE MODE // 2021.05.23 @ 16:52:17 Player: ChromeKnight Result: Self-destructed Performance ------------- Evolutions (1) 500 Regions Visited (5) 1000 Robots Destroyed (39) 195 Value Destroyed (708) 708 Prototype IDs (24) 480 Alien Tech Used (0) 0 Bonus (300) 300 TOTAL SCORE: 3183 Bonus ------- Aligned with FarCom 300 Cogmind --------- Core Integrity 103/400 Matter 273/300 Energy 111/125 System Corruption 1% Temperature Cool (0) Movement Treading (160) Location -8/Mines Parts ------- > --- POWER (1) -------- Light Ion Engine > --- PROPULSION (2) --- Light Treads Improved Treads > --- UTILITY (3) ------ Large Storage Unit Heavy Armor Plating > --- WEAPON (3) ------- Particle Gun Light Assault Rifle High-powered Shotgun > --- INVENTORY (10) --- Improved Treads Improved Treads Superbattery (2000) Large Matter Pod (150) Heavy Armor Plating Bomb Drone Bay PSU Rigger Longsword +1 Peak State ------------ > --- POWER ------------ Improved Ion Engine > --- PROPULSION ------- Improved Treads Improved Treads > --- UTILITY ---------- Medium Storage Unit Heavy Armor Plating > --- WEAPON ----------- High-powered Shotgun High-powered Shotgun High-powered Shotgun > --- INVENTORY -------- Light Treads Light Treads Light Treads Light Treads Light Treads Medium Storage Unit Large Matter Pod High-powered Shotgun [Rating: 23] Favorites ----------- Power Light Ion Engine Engine Light Ion Engine Propulsion Light Treads Treads Light Treads Leg Aluminum Leg Utility Medium Storage Unit Device Heat Sink Storage Medium Storage Unit Protection Heavy Armor Plating Weapon High-powered Shotgun Energy Gun Particle Gun Ballistic Gun High-powered Shotgun Special Weapon Mining Laser Build | -11 -10 -9 -9 -9 -8 ------- Run | Scr Mat Mat Min Exi Min Slots Evolved 2 | . . 2 . . . Power . | . . . . . . Propulsion . | . . . . . . Utility 1 | . . 1 . . . Weapon 1 | . . 1 . . . Parts Attached 35 | 6 4 14 8 3 . Power 3 | 1 . 1 1 . . Engine 3 | 1 . 1 1 . . Core . | . . . . . . Reactor . | . . . . . . Propulsion 11 | 2 3 3 2 1 . Treads 9 | . 3 3 2 1 . Leg 2 | 2 . . . . . Wheel . | . . . . . . Hover . | . . . . . . Flight . | . . . . . . Utility 8 | 1 1 4 . 2 . Device 2 | . 1 1 . . . Storage 4 | 1 . 2 . 1 . Processor . | . . . . . . Hackware . | . . . . . . Protection 2 | . . 1 . 1 . Artifact . | . . . . . . Weapon 13 | 2 . 6 5 . . Energy Gun 4 | 1 . 2 1 . . Energy Cannon . | . . . . . . Ballistic Gun 8 | 1 . 4 3 . . Ballistic Cannon . | . . . . . . Launcher . | . . . . . . Special Weapon 1 | . . . 1 . . Impact Weapon . | . . . . . . Slashing Weapon . | . . . . . . Piercing Weapon . | . . . . . . Special Melee Weapon . | . . . . . . Unidentified Prototypes 1 | . . 1 . . . Parts Lost 7 | . . . 7 . . Power 1 | . . . 1 . . Propulsion 2 | . . . 2 . . Utility 1 | . . . 1 . . Weapon 3 | . . . 3 . . Highest Loss Streak 7 | . . . 7 . . Average Slot Usage (%) 87 | . 95 89 80 88 88 Engine 10 | . 14 11 8 11 11 Treads 22 | . 27 22 21 22 22 Device 2 | . 10 2 2 . . Storage 17 | . 14 13 22 20 11 Protection 3 | . . 8 . 1 11 Energy Gun 8 | . 14 5 9 11 11 Ballistic Gun 21 | . 14 27 15 22 22 Naked Turns . | . . . . . . Heaviest Build 41 | 13 14 39 33 41 41 Greatest Support 46 | 20 40 46 46 43 43 Greatest Overweight (x) . | . . . . . . Average Overweight (x) . | . . . . . . Largest Inventory Capacity 18 | 6 6 12 12 18 10 Average Capacity 9 | 5 6 7 12 11 10 Most Carried 12 | . 6 11 11 12 10 Average Carried 8 | . 5 7 8 10 10 Final Capacity 12 | 6 6 12 12 10 10 Final Carried 11 | . 6 11 10 10 10 Class Distribution -------------------- 34% | Gunner 32% | Mutant 28% | Tank 4% | Skirmisher Dominant Class ---------------- Mutant | -10/Materials Tank | -9/Materials Mutant | -9/Mines Gunner | -9/Exiles Skirmisher | -8/Mines Resources | -11 -10 -9 -9 -9 -8 ----------- Run | Scr Mat Mat Min Exi Min Matter Collected 1358 | 228 140 722 268 . . Remotely . | . . . . . . Salvage Created 1475 | . 486 698 291 . . Parts 81 | . 26 48 7 . . Haulers Intercepted 3 | . 1 2 . . . Recyclers Shooed 2 | . 1 1 . . . Parts Field Recycled . | . . . . . . Retrieved Matter . | . . . . . . Parts Self-Destructed . | . . . . . . Prevented . | . . . . . . Kills | -11 -10 -9 -9 -9 -8 ------- Run | Scr Mat Mat Min Exi Min Combat Hostiles Destroyed 28 | . 7 11 10 . . Guns 27 | . 7 11 9 . . Cannons 1 | . . . 1 . . Classes Destroyed 11 | . 6 4 1 . . Worker 3 | . . 2 1 . . Builder 1 | . . 1 . . . Tunneler 1 | . . 1 . . . Hauler 3 | . 1 2 . . . Recycler 6 | . 2 2 2 . . Operator 1 | . 1 . . . . Watcher 4 | . 1 3 . . . Swarmer 6 | . 3 3 . . . Grunt 12 | . 4 6 2 . . Sentry 2 | . . 2 . . . Assembled 8 | . . . 8 . . Best Kill Streak 7 | . 7 7 3 . . Combat Bots Only 6 | . 4 6 3 . . Max Kills in Single Turn 2 | . 2 2 1 . . Gunslinging 1 | . 1 1 . . . Exploded . | . . . . . . Melee . | . . . . . . Uniques/NPCs Destroyed . | . . . . . . Combat | -11 -10 -9 -9 -9 -8 -------- Run | Scr Mat Mat Min Exi Min Damage Taken 1800 | . 170 569 1061 . . Core 330 | . 33 59 238 . . Absorbed by Shields . | . . . . . . Core Remaining (%) 93 | 100 86 . . . . Volleys Fired 106 | . 26 40 40 . . Largest 3 | . 2 3 3 . . Hottest 125 | . 70 95 125 . . Shots Fired 260 | . 52 119 89 . . Gun 255 | . 52 119 84 . . Cannon . | . . . . . . Launcher . | . . . . . . Special 5 | . . . 5 . . Kinetic 194 | . 26 107 61 . . Thermal 41 | . 26 . 15 . . Explosive . | . . . . . . Electromagnetic 25 | . . 12 13 . . Robot Hit Streak 12 | . 12 6 7 . . Robot Miss Streak 7 | . 3 6 7 . . Penetration Max . | . . . . . . Secondary Targets 4 | . 2 2 . . . Max Gunslinging Chain 1 | . 1 1 . . . Shots Hit Robots 170 | . 36 74 60 . . Core Hits 80 | . 19 35 26 . . Critical Hits 1 | . 1 . . . . Critical Kills . | . . . . . . Critical Parts Destroyed 1 | . 1 . . . . Melee Attacks . | . . . . . . Impact . | . . . . . . Slashing . | . . . . . . Piercing . | . . . . . . Sneak Attacks . | . . . . . . Combat Hostiles . | . . . . . . Follow-up Attacks . | . . . . . . Damage Inflicted 2369 | . 435 1101 825 . 8 Guns 2217 | . 434 1030 753 . . Cannons . | . . . . . . Explosions 66 | . . 66 . . . Melee . | . . . . . . Ramming 14 | . 1 5 . . 8 Kinetic 1643 | . 210 862 571 . . Thermal 440 | . 224 66 150 . . Explosive . | . . . . . . Electromagnetic 272 | . . 168 104 . . Impact . | . . . . . . Slashing . | . . . . . . Piercing . | . . . . . . Highest Corruption 1 | . . . 1 1 1 Average Corruption 1 | . . . 1 1 1 Corruption Purged . | . . . . . . Effects 3 | . . . 1 1 1 Energy Discharges 2 | . . . . 1 1 Weapon Failures 1 | . . . 1 . . Overload Shots . | . . . . . . Overflow Damage . | . . . . . . Projectiles . | . . . . . . Explosions . | . . . . . . Melee . | . . . . . . Knockbacks 1 | . . . . . 1 Impact 1 | . . . . . 1 Kinetic . | . . . . . . Secondary . | . . . . . . Self-Inflicted Damage 28 | . . 28 . . . Shots 1 | . . 1 . . . Rammed 3 | . 1 1 . . 1 Targets Rammed 3 | . 1 1 . . 1 Kicked . | . . . . . . Crushed . | . . . . . . Highest Temperature 234 | . 9 157 234 . . Average Temperature 54 | . 6 52 71 . . Received Heat Transfer 320 | . 78 189 53 . . Siege Activations . | . . . . . . Robots Corrupted . | . . . . . . Combat Hostiles . | . . . . . . Parts Fried . | . . . . . . Impact Corruptions . | . . . . . . Robots Melted . | . . . . . . Combat Hostiles . | . . . . . . Parts Melted 1 | . . 1 . . . Heat Transferred 1051 | . 666 50 335 . . Parts Sabotaged . | . . . . . . Parts Stolen . | . . . . . . Parts Stripped . | . . . . . . Power Chain Reactions 1 | . . 1 . . . Missiles Intercepted . | . . . . . . Alert | -11 -10 -9 -9 -9 -8 ------- Run | Scr Mat Mat Min Exi Min Peak Influence 331 | . 214 331 112 . . Initial 90 | . . 90 87 . . Average 103 | . 116 170 37 . . Maximum Alert Level 1 | . 1 1 . . . Low Security (%) 81 | 100 65 68 100 . 100 Level 1 18 | . 34 31 . . . Level 2 . | . . . . . . Level 3 . | . . . . . . Level 4 . | . . . . . . Level 5 . | . . . . . . High Security . | . . . . . . Max Security . | . . . . . . Squads Dispatched 3 | . 2 1 . . . Investigation . | . . . . . . Extermination . | . . . . . . Reinforcement 3 | . 2 1 . . . Assault . | . . . . . . Garrison . | . . . . . . Intercept . | . . . . . . Construction Impeded . | . . . . . . Haulers Reinforced . | . . . . . . Stealth | -11 -10 -9 -9 -9 -8 --------- Run | Scr Mat Mat Min Exi Min Distress Signals 2 | . 1 1 . . . Communications Jammed . | . . . . . . Distress Signals . | . . . . . . Times Spotted 54 | . 12 24 18 . . Peak Tracking Total 6 | . 4 6 5 . . Tactical Retreats 7 | . . 2 5 . . Traps | -11 -10 -9 -9 -9 -8 ------- Run | Scr Mat Mat Min Exi Min Traps Triggered 1 | . . 1 . . . Indirectly . | . . . . . . Trap Hack Attempts . | . . . . . . Triggered . | . . . . . . Disarmed . | . . . . . . Reprogrammed . | . . . . . . Reused . | . . . . . . Traps Extracted . | . . . . . . Installed . | . . . . . . Triggered . | . . . . . . Machines | -11 -10 -9 -9 -9 -8 ---------- Run | Scr Mat Mat Min Exi Min Machines Disabled . | . . . . . . Max in Single Turn . | . . . . . . Machines Sabotaged . | . . . . . . Garrisons Compromised . | . . . . . . Overloaded Fab Kills . | . . . . . . Fab Network Shutdowns . | . . . . . . Hacking | -11 -10 -9 -9 -9 -8 --------- Run | Scr Mat Mat Min Exi Min Machines Accessed 3 | . . 1 1 1 . Terminals 1 | . . 1 . . . Fabricators . | . . . . . . Repair Stations . | . . . . . . Recycling Units . | . . . . . . Scanalyzers . | . . . . . . Garrison Access . | . . . . . . Total Hacks 4 | . . 2 1 1 . Successful 3 | . . 1 1 1 . Failed 1 | . . 1 . . . Catastrophic . | . . . . . . Database Lockouts . | . . . . . . Manual 1 | . . . . 1 . Terminals 2 | . . 2 . . . Fabricators . | . . . . . . Repair Stations . | . . . . . . Recycling Units . | . . . . . . Scanalyzers . | . . . . . . Garrison Access . | . . . . . . Terminal Hacks 3 | . . 1 1 1 . Open Door 1 | . . . 1 . . Zone Layout 1 | . . 1 . . . EX-Prototype ID Bank 1 | . . . . 1 . Fabricator Hacks . | . . . . . . Repair Station Hacks . | . . . . . . Recycling Unit Hacks . | . . . . . . Scanalyzer . | . . . . . . Garrison Access Hacks . | . . . . . . Unauthorized Hacks . | . . . . . . Terminals . | . . . . . . Fabricators . | . . . . . . Repair Stations . | . . . . . . Recycling Units . | . . . . . . Scanalyzers . | . . . . . . Garrison Access . | . . . . . . Data Cores Recovered 1 | . 1 . . . . Used . | . . . . . . Hacking Detections . | . . . . . . Full Trace Events . | . . . . . . Feedback Events . | . . . . . . Feedback Blocked . | . . . . . . Robot Schematics Acquired . | . . . . . . Robots Built . | . . . . . . Matter . | . . . . . . Time . | . . . . . . Total Robot Build Rating . | . . . . . . Part Schematics Acquired . | . . . . . . Parts Built . | . . . . . . Matter . | . . . . . . Time . | . . . . . . Total Part Build Rating . | . . . . . . Parts Repaired . | . . . . . . Time . | . . . . . . Parts Recycled . | . . . . . . Recycled Matter . | . . . . . . Retrieved Matter . | . . . . . . Retrieved Components . | . . . . . . Parts Scanalyzed . | . . . . . . Part Schematics Acquired . | . . . . . . Parts Damaged . | . . . . . . Bothacking | -11 -10 -9 -9 -9 -8 ------------ Run | Scr Mat Mat Min Exi Min Used RIF Installer . | . . . . . . Robots Hacked . | . . . . . . Non-combat . | . . . . . . Combat . | . . . . . . Robot Hacks Applied . | . . . . . . Relay Couplers Released . | . . . . . . Robots Rewired . | . . . . . . Allies Hacked . | . . . . . . Hacks Repelled . | . . . . . . Allies | -11 -10 -9 -9 -9 -8 -------- Run | Scr Mat Mat Min Exi Min Total Allies 1 | . . . 1 . . Largest Group 1 | . . . 1 1 . Highest-Rated Group 31 | . . . 31 31 . Highest-Rated Ally 31 | . . . 31 31 . Total Orders . | . . . . . . Ally Attacks . | . . . . . . Total Damage . | . . . . . . Kills . | . . . . . . Allies Corrupted . | . . . . . . Allies Melted . | . . . . . . Intel | -11 -10 -9 -9 -9 -8 ------- Run | Scr Mat Mat Min Exi Min Robot Analysis Total . | . . . . . . Derelict Logs Recovered 2 | . . . 2 . . Drone Launches . | . . . . . . Drone Recoveries . | . . . . . . Exploration | -11 -10 -9 -9 -9 -8 ------------- Run | Scr Mat Mat Min Exi Min Turns Passed 2799 | 51 360 1014 833 424 117 Spaces Moved 1479 | 40 166 521 422 258 72 Core 7 | 7 . . . . . Treads 1434 | . 161 521 422 258 72 Legs 38 | 33 5 . . . . Wheels . | . . . . . . Hover . | . . . . . . Flight . | . . . . . . Fastest Speed 50 | 50 120 160 160 160 160 Average Speed 158 | 107 158 160 160 160 160 Slowest Speed 160 | 120 160 160 160 160 160 Overloaded Moves . | . . . . . . Propulsion Burnouts . | . . . . . . Robots Hopped . | . . . . . . Cave-ins Triggered . | . . . . . . Exploration Rate (%) 40 | 3 28 39 82 62 30 Regions Visited 5 Branch Regions 3 Pre-discovered Areas . | . . . . . . Known Exits Taken . | . . . . . . Unknown Exits Taken 5 | 1 1 1 1 1 . Scrap Searched 1 | . . . 1 . . Spaces Dug . | . . . . . . Terrain Destroyed 6 | . . 4 2 . . Melee . | . . . . . . Projectile 2 | . . . 2 . . AOE 4 | . . 4 . . . Terrain Rammed . | . . . . . . Walls Destroyed . | . . . . . . Machines Disabled . | . . . . . . Actions | -11 -10 -9 -9 -9 -8 --------- Run | Scr Mat Mat Min Exi Min Total 1711 | 45 209 619 495 270 73 Wait 46 | . 3 20 23 . . Move 1474 | 39 165 520 421 257 72 Hop . | . . . . . . Pick Up 23 | . 7 9 1 6 . Fast Attach 21 | 6 3 6 5 1 . Attach 5 | . . 2 2 1 . Detach . | . . . . . . Swap 9 | . 1 6 1 1 . Drop 24 | . 3 15 2 4 . Fire 106 | . 26 40 40 . . Melee . | . . . . . . Ram . | . . . . . . Kick . | . . . . . . Crush 3 | . 1 1 . . 1 Escape Stasis . | . . . . . . Rewire . | . . . . . . Trap . | . . . . . . Miscellaneous . | . . . . . . Route ------- -11/Scrapyard -10/Materials (discovered 2 exits: *Mat / [*Min]) -9/Materials -9/Mines (discovered 3 exits: [*Mat x2] / *Exi) -9/Exiles -8/Mines History --------- Turn | Location | Event 2 | -11/Scrapyard | Met Revision 17 3 | -11/Scrapyard | Discovered new exit (range 16) 52 | -11/Scrapyard | Entered Materials 52 | -10/Materials | Discovered new exit (range 15) 301 | -10/Materials | Build established: Mutant 381 | -10/Materials | Discovered new exit (range 9) 412 | -10/Materials | Entered another Materials area 412 | -9/Materials | Evolved 2 slots: Utility x1, Weapon x1 737 | -9/Materials | Build established: Tank 876 | -9/Materials | Discovered new exit (range 10) 1426 | -9/Materials | Entered Mines 1462 | -9/Mines | Received a Rocket Launcher from a helpful Derelict 1485 | -9/Mines | Assembled infested the area 1500 | -9/Mines | Learned Materials stockpile data 1513 | -9/Mines | Build established: Gunner 1553 | -9/Mines | Discovered new exit (range 9) 1584 | -9/Mines | Core integrity fell below 50% 1656 | -9/Mines | Lost 7 parts (1p2n1u3w) 1703 | -9/Mines | Discovered new exit (range 4) 1851 | -9/Mines | Build established: Mutant 2083 | -9/Mines | Found the Drone Emporium 2090 | -9/Mines | Found Prototype Device 2222 | -9/Mines | Received a Mining Laser from a helpful Derelict 2253 | -9/Mines | Deemed a non-threat by the Exiles lab entrance 2253 | -9/Mines | Discovered new exit (range 5) 2259 | -9/Mines | Entered Exiles 2259 | -9/Exiles | Accompanied by 1 ally 2299 | -9/Exiles | Met 8R-AWN 2325 | -9/Exiles | Met EX-HEX 2367 | -9/Exiles | Build established: Gunner 2380 | -9/Exiles | Met EX-BIN 2402 | -9/Exiles | Aligned with FarCom system 2404 | -9/Exiles | Given EX-Vault access code 2450 | -9/Exiles | Opened EX-Vault 2460 | -9/Exiles | Found Superbattery 2462 | -9/Exiles | Found PSU Rigger 2467 | -9/Exiles | Found Longsword +1 2501 | -9/Exiles | Warned to stay clear of 0b10 Research branches 2556 | -9/Exiles | Met EX-DEC 2663 | -9/Exiles | Discovered new exit (range 14) 2683 | -9/Exiles | Stole three prototypes: Superbattery, Longsword +1, PSU Rigger 2683 | -9/Exiles | Entered Mines 2800 | -8/Mines | Self-destructed Last Messages --------------- EX-BIN: And don't even think about spreading that code around. We're gonna change it right after you leave. Most certainly not to something like 1234 which I did last time as a little joke and some thief managed to sneak in here and steal a few of HEX's prototypes. EX-DEC: Ah I see we have a visitor. One wrong move in here and I'll invert your atomic chain! 02558_ EX-DEC: "Oops, I hope HEX didn't hear that..." 02620_ Acquired Lrg. Storage Unit. 02621_ Dropped Med. Storage Unit. 02650_ Acquired Med. Storage Unit. 02653_ Acquired Imp. Treads. 02657_ Dropped Med. Storage Unit. 02658_ Acquired PSU Rigger. 02663_ EXIT=FOUND LOCATION=UNKNOWN GOAL=ESCAPE 02683_ Receiving FarCom transmissions... 02744_ Slammed into T-07 Excavator. 02744_ T-07 Excavator knocked back. 02797_ System corrupted: Energy discharge (-36). Map ----- +----------------------------------------------------+ | | | | | | | | | | | | | | | | | | | | | | | ??????????????????????????????? | | ??????????????????????????????? | | ??????????????????????????????? | | ??????????????????????????????? | | ??????????????????????????????? | | ??????????????????????????????? | | ??????????????????????####????? | | ??#####????????????#### ##???? | | ?## ##??????????## ##??? | | ?# #??????????# ##?? | | ## #?????????## #?? | | # #????????### #?? | | #???????## #?? | | ######### ### #?? | | ##?## @ #?? | | ##???# #?? | | ## ##### ##????## ##?? | | ?## #??# ##??????####??? | | ??## #?## ##?????????????? | | ???## g #??####??????????????? | | ????# #????????????????????? | | ????## ##????????????????????? | | ?????# ##?????????????????????? | | ?????? #??????????????????????? | | ?????? #??????????????????????? | | ?????# #??????????????????????? | | ?????# #??????????????????????? | | #????# #??????????????????????? | | #????# #??????????????????????? | | #???## ####???????????????????? | | ??### ????????????????????? | | ??? $ ?????????????????????? | | ????# #??????????????????????? | | ##### ###????????????????????? | | * ##???????????????????? | | ##### #???????????????????? | | ????# #???????????????????? | | ???## ##???????????????????? | | ???# #????????????????????? | +----------------------------------------------------+ Best States ------------- Heat Dissipation 38 Energy Generation 12 Energy Capacity 265 Matter Stores 300 Matter Capacity 300 Sight Range 16 Terrain Scan Density 10 Armor Coverage 600 Evasion (%) 40 Recoil Reduction 2 Item Schematics ----------------- None Robot Schematics ------------------ None Fabricated ------------ Nothing Alien Tech Used ----------------- None Achievements -------------- None Challenges ------------ None Game ------ Seed GravitySpikedAutogun Manual? 0 Play Time 00:11:03 Cumulative 224.0 hours Start 2021.05.23 @ 16:41:35 End 2021.05.23 @ 16:52:17 Sessions 1 Manual Loads 0 Difficulty Rogue Special Mode None Game No. 431 Rogue 276 Adventurer 148 Explorer 7 Win Type - Total 9 Types 7/0/1/1/0/0/0/0/0 Lore% 75 Gallery% 86 Achievement% 64 Wizard Run 0 Options --------- ASCII 0 Keyboard 0 Movement Numpad Keybinds 0 Fullscreen 1 Font 18/CogNarrow Map View 76x50 Tactical HUD 1 Map Filters NONE Filters NONE Steam 1 RUN: e96c7ef9-fb57-4a10-b1ef-8465d5725708